bitfinex/quotes_SOLUSD_20250123
["timestamp","ask_amount","ask_price","bid_price","bid_amount"]
[1737622133122,4.0628,246.13,245.98,15.9571863]
[1737622134197,43.86,246.18,245.98,15.9571863]
[1737622134198,4.0626,246.15,246.02,11.8919863]
[1737622134404,4.12,246.14,246.02,11.8919863]
[1737622134997,4.12,246.14,246.04,11.8919863]
[1737622136208,4.12,246.14,246.06,1.6398]
[1737622136496,4.12,246.13,246.06,13.5317863]
[1737622136716,4.12,246.13,246.08,11.8919863]
[1737622137223,4.12,246.13,246.09,4.0635]
[1737622137808,4.1,246.14,246.09,4.0635]
[1737622139093,4.1,246.14,246.06,13.5317863]
[1737622139297,4.1,246.14,246.06,5.7038]
[1737622139509,4.1,246.14,246.06,17.5957863]
[1737622139900,4.1,246.14,246.08,11.8919863]
[1737622140517,4.1,246.14,246.1,11.8919863]
[1737622140718,10.1518,246.27,246.1,11.8919863]
[1737622140719,4.1,246.2,246.12,11.8919863]
[1737622140891,4.1,246.2,246.16,11.8919863]
[1737622141230,4.1,246.2,246.17,4.0622]
[1737622141391,6.1044,246.3,246.18,11.8919863]
[1737622141592,4.1,246.29,246.18,11.8919863]
[1737622141793,4.1,246.28,246.23,11.8919863]
[1737622142022,4.1,246.28,246.25,11.8919863]
[1737622142697,0.063,246.35,246.27,11.8919863]
[1737622142896,4.1,246.34,246.27,11.8919863]
[1737622143097,4.1,246.34,246.22,1.0]
[1737622143098,0.063,246.35,246.29,11.8919863]
[1737622143308,4.163,246.35,246.3,4.06]
[1737622145516,0.063,246.35,246.3,4.06]
[1737622145733,0.063,246.35,246.31,11.8919863]
[1737622145734,4.08,246.34,246.31,11.8919863]
[1737622146125,0.063,246.35,246.26,1.0]
[1737622146126,4.08,246.33,246.26,11.8919863]
[1737622146435,4.08,246.33,246.24,11.8919863]
[1737622146625,4.08,246.33,246.22,11.8919863]
[1737622146933,4.08,246.33,246.24,11.8919863]
[1737622147121,4.08,246.33,246.22,11.8919863]
[1737622147428,4.08,246.33,246.24,11.8919863]
[1737622148232,0.063,246.35,246.24,11.8919863]
[1737622148409,4.12,246.32,246.24,11.8919863]
[1737622148622,4.12,246.32,246.26,11.8919863]
[1737622148816,4.12,246.32,246.3,11.8919863]
[1737622149132,4.12,246.32,246.28,11.8919863]
[1737622149429,4.12,246.32,246.23,4.0612]
[1737622149611,4.12,246.32,246.22,15.9531863]
[1737622149818,8.1797,246.32,246.22,15.9531863]
[1737622150026,8.1797,246.32,246.2,4.0617]
[1737622150830,20.0,246.29,246.2,4.0617]
[1737622151129,24.0603,246.29,246.2,4.0617]
[1737622151512,20.0,246.29,246.2,4.0617]
[1737622151714,4.0604,246.28,246.11,11.8919863]
[1737622151914,14.2114,246.28,246.11,15.9551863]
[1737622152240,20.0,246.25,246.11,4.0632]
[1737622152942,20.0,246.25,246.09,4.0634]
[1737622153236,4.061,246.24,246.09,4.0634]
[1737622154526,14.2136,246.24,246.07,4.0638]
[1737622154738,7.7309,246.23,246.07,4.0638]
[1737622155032,20.0,246.19,246.03,4.0643]
[1737622155425,20.0,246.19,246.06,4.0639]
[1737622155643,20.0,246.2,246.06,4.0639]
[1737622156726,20.0,246.18,246.03,4.0645]
[1737622156921,43.86,246.21,246.03,4.0645]
[1737622156922,4.12,246.17,246.08,19.03109471]
[1737622157135,4.12,246.17,246.1,19.06109471]
[1737622158040,4.12,246.16,246.1,19.06109471]
[1737622158447,4.12,246.16,246.12,19.03109471]
[1737622158628,4.12,246.16,246.13,4.0628]
[1737622161618,4.12,246.16,246.1,19.06109471]
[1737622161820,4.12,246.16,246.1,0.03]
[1737622162018,8.1824,246.16,246.1,0.03]
[1737622165733,4.0615,246.22,246.11,19.03109471]
[1737622166044,4.1,246.21,246.15,19.03109471]
[1737622166221,4.1,246.21,246.17,19.03109471]
[1737622166421,4.1,246.22,246.17,19.03109471]
[1737622167540,4.1,246.22,246.17,23.09319471]
[1737622167738,6.6555,246.29,246.17,23.09319471]
[1737622167931,4.1,246.23,246.17,23.09319471]
[1737622169025,4.1,246.23,246.19,19.03109471]
[1737622169926,4.1,246.23,246.21,19.03109471]
[1737622170126,4.08,246.26,246.21,19.03109471]
[1737622170667,10.715,246.34,246.21,19.03109471]
[1737622170847,4.08,246.33,246.24,4.061]
[1737622171336,8.1396,246.33,246.24,4.061]
[1737622171522,4.08,246.33,246.24,4.061]
[1737622172140,0.063,246.35,246.3,1.0]
[1737622172338,0.063,246.47,246.34,20.03109471]
[1737622172521,0.063,246.47,246.39,19.03109471]
[1737622172722,0.063,246.47,246.41,19.03109471]
[1737622172949,0.063,246.47,246.41,23.08929471]
[1737622175949,4.223,246.47,246.41,23.08929471]
[1737622176745,4.223,246.47,246.39,23.08959471]
[1737622177957,4.223,246.47,246.41,19.03109471]
[1737622179658,0.063,246.47,246.41,20.03109471]
[1737622179952,0.0001,246.42,246.41,20.03109471]
[1737622185161,0.0001,246.42,246.41,19.03109471]
[1737622185636,0.0001,246.42,246.39,19.03109471]
[1737622190573,0.0001,246.42,246.37,19.03109471]
[1737622190871,4.0801,246.42,246.35,19.03109471]
[1737622191652,4.0801,246.42,246.34,11.86506004]
[1737622193051,4.0582,246.41,246.32,11.86506004]
[1737622193254,20.0,246.39,246.3,11.86506004]
[1737622194865,20.0,246.39,246.28,4.0604]
[1737622195252,20.0,246.39,246.32,0.03]
[1737622195454,20.0,246.38,246.32,0.03]
[1737622199572,24.0589,246.37,246.32,0.03]
[1737622204351,4.04,246.25,246.21,0.03]
[1737622206267,20.0,246.22,246.21,0.03]
[1737622207376,4.04,246.25,246.21,0.03]
[1737622207555,4.06,246.24,246.21,0.03]
[1737622208578,4.06,246.24,246.22,11.86506004]
[1737622209776,4.06,246.24,246.22,18.9995191]
[1737622209978,4.06,246.24,246.23,4.0612]
[1737622211074,6.1172,246.4,246.24,1.0]
[1737622211272,4.04,246.36,246.3,18.9995191]
[1737622211569,1.6119,246.42,246.32,18.9995191]
[1737622211570,4.04,246.39,246.32,18.9995191]
[1737622211774,4.04,246.38,246.34,18.9995191]
[1737622212165,4.04,246.38,246.3,18.9995191]
[1737622213185,4.04,246.38,246.31,4.0599]
[1737622214080,4.04,246.38,246.32,18.9995191]
[1737622215573,4.1219,246.37,246.28,18.9995191]
[1737622215777,4.1219,246.37,246.26,18.9995191]
[1737622215954,4.1219,246.37,246.26,23.0602191]
[1737622216159,4.1219,246.37,246.26,18.9995191]
[1737622217167,20.0,246.36,246.28,18.9995191]
[1737622217368,0.063,246.37,246.28,18.9995191]
[1737622217578,4.122,246.37,246.28,18.9995191]
[1737622217766,4.122,246.37,246.24,18.9995191]
[1737622218364,20.0,246.34,246.24,18.9995191]
[1737622218766,14.2693,246.37,246.24,18.9995191]
[1737622218969,4.122,246.37,246.26,18.9995191]
[1737622219981,4.122,246.37,246.26,19.0295191]
[1737622220363,4.122,246.37,246.26,0.03]
[1737622221073,20.0,246.34,246.26,0.03]
[1737622221467,26.3465,246.34,246.26,0.03]
[1737622221667,4.0595,246.33,246.26,0.03]
[1737622222688,20.0,246.29,246.21,0.03]
[1737622223584,20.0,246.25,246.21,0.03]
[1737622225486,4.0604,246.28,246.21,0.03]
[1737622225688,20.0,246.29,246.21,0.03]
[1737622225897,47.9198,246.32,246.21,0.03]
[1737622226069,43.86,246.32,246.24,18.9995191]
[1737622226265,4.0591,246.36,246.26,18.9995191]
[1737622226467,4.04,246.35,246.24,18.9995191]
[1737622226774,4.04,246.35,246.22,1.5056]
[1737622226972,4.04,246.35,246.21,0.03]
[1737622227307,20.0,246.29,246.21,0.03]
[1737622227679,4.0604,246.28,246.21,0.03]
[1737622228597,20.0,246.3,246.21,0.03]
[1737622229094,4.06,246.29,246.21,0.03]
[1737622229302,4.06,246.29,246.21,19.0295191]
[1737622229691,4.06,246.29,246.21,0.03]
[1737622230001,8.1202,246.29,246.21,0.03]
[1737622230305,4.06,246.29,246.21,0.03]
[1737622230475,4.0591,246.36,246.21,19.0295191]
[1737622230800,4.0591,246.36,246.21,0.03]
[1737622230801,4.08,246.35,246.21,0.03]
[1737622230976,20.0,246.33,246.21,0.03]
[1737622231696,4.08,246.35,246.21,0.03]
[1737622231882,20.0,246.32,246.21,0.03]
[1737622232702,4.0598,246.32,246.21,4.0915]
[1737622232922,0.063,246.37,246.26,11.8771192]
[1737622233209,4.08,246.33,246.29,11.8771192]
[1737622234004,4.08,246.33,246.29,15.9372192]
[1737622234177,4.08,246.33,246.21,11.1839]
[1737622234178,4.08,246.33,246.23,15.9383192]
[1737622234801,4.08,246.33,246.25,11.8771192]
[1737622234991,4.08,246.33,246.27,11.8771192]
[1737622236175,4.08,246.33,246.28,4.0604]
[1737622236704,4.08,246.32,246.28,4.0604]
[1737622236900,4.08,246.32,246.25,11.8771192]
[1737622237097,4.08,246.32,246.26,4.0605]
[1737622237299,4.08,246.32,246.23,11.8771192]
[1737622238229,24.08,246.32,246.24,4.061]
[1737622238580,4.08,246.32,246.25,11.8771192]
[1737622239007,8.1397,246.32,246.24,4.061]
[1737622239309,4.08,246.32,246.24,4.061]
[1737622239881,4.08,246.32,246.25,11.8771192]
[1737622240383,4.08,246.32,246.26,4.0607]
[1737622241186,4.08,246.32,246.23,15.9382192]
[1737622241187,8.1398,246.32,246.23,15.9382192]
[1737622241415,8.1398,246.32,246.21,0.03]
[1737622241707,20.0,246.29,246.21,0.03]
[1737622242283,4.0604,246.28,246.21,0.03]
[1737622245579,20.0,246.29,246.21,0.03]
[1737622245816,4.06,246.28,246.22,11.8771192]
[1737622245993,4.06,246.31,246.26,11.8771192]
[1737622246308,4.06,246.31,246.28,11.8771192]
[1737622246611,4.06,246.34,246.3,11.8771192]
[1737622246995,43.84,246.36,246.3,11.8771192]
[1737622247206,4.123,246.35,246.31,4.0599]
[1737622248212,0.063,246.35,246.31,4.0599]
[1737622248907,0.063,246.35,246.3,11.8771192]
[1737622249089,0.063,246.35,246.28,1.5527]
[1737622249692,0.063,246.35,246.24,25.5428066]
[1737622249986,0.063,246.35,246.24,18.9977066]
[1737622250182,4.1223,246.35,246.24,18.9977066]
[1737622250412,0.063,246.35,246.24,18.9977066]
[1737622250727,0.063,246.35,246.3,18.9977066]
[1737622251590,0.063,246.35,246.32,18.9977066]
[1737622253085,0.063,246.35,246.28,18.9977066]
[1737622253289,0.063,246.35,246.26,18.9977066]
[1737622254412,0.063,246.35,246.22,5.614]
[1737622254599,0.063,246.35,246.24,18.9977066]
[1737622254798,0.063,246.35,246.26,18.9977066]
[1737622255500,0.063,246.35,246.28,18.9977066]
[1737622256092,4.1222,246.35,246.28,18.9977066]
[1737622259315,4.1222,246.35,246.24,18.9977066]
[1737622259916,14.2703,246.35,246.22,20.5504066]
[1737622261103,20.0,246.32,246.22,20.5504066]
[1737622261315,4.0599,246.31,246.22,20.5504066]
[1737622261923,0.063,246.35,246.29,18.9977066]
[1737622262128,0.063,246.35,246.33,18.9977066]
[1737622264121,0.063,246.35,246.29,18.9977066]
[1737622264322,4.1223,246.35,246.27,18.9977066]
[1737622264629,4.1223,246.35,246.25,18.9977066]
[1737622265224,24.1223,246.35,246.22,1.5527]
[1737622265422,20.0,246.33,246.21,4.0914]
[1737622266119,0.063,246.35,246.27,18.9977066]
[1737622267327,4.1222,246.35,246.23,23.0589066]
[1737622268017,0.063,246.35,246.27,18.9977066]
[1737622269301,4.0594,246.34,246.23,23.0589066]
[1737622269697,4.0594,246.34,246.22,0.03]
[1737622269938,20.0,246.31,246.22,0.03]
[1737622271408,20.0,246.27,246.22,0.03]
[1737622272830,4.0607,246.26,246.22,0.03]
[1737622273408,4.0605,246.28,246.22,0.03]
[1737622274432,20.0,246.29,246.22,0.03]
[1737622274935,20.0,246.3,246.22,0.03]
[1737622276612,24.0601,246.3,246.22,0.03]
[1737622277033,24.0601,246.3,246.19,6.6e-06]
[1737622277234,34.2103,246.3,246.13,18.9977066]
[1737622278635,34.2103,246.3,246.13,23.0605066]
[1737622279934,24.0601,246.3,246.19,18.9977066]
[1737622280131,24.0601,246.3,246.13,4.0628]
[1737622280132,24.0601,246.3,246.15,18.9977066]
[1737622280335,20.0,246.28,246.17,18.9977066]
[1737622280526,20.0,246.28,246.19,18.9977066]
[1737622280728,4.04,246.27,246.21,18.9977066]
[1737622281237,4.04,246.27,246.19,18.9977066]
[1737622281534,20.0,246.3,246.19,18.9977066]
[1737622281737,4.04,246.29,246.19,18.9977066]
[1737622281922,8.1003,246.29,246.17,18.9977066]
[1737622282836,0.063,246.3,246.23,18.9977066]
[1737622283138,4.04,246.28,246.25,18.9977066]
[1737622283323,4.103,246.3,246.27,18.9977066]
[1737622283746,0.063,246.3,246.29,18.9977066]
[1737622283938,0.063,246.3,246.29,23.0579066]
[1737622284821,0.063,246.3,246.29,18.9977066]
[1737622285145,0.063,246.3,246.21,18.9977066]
[1737622285317,4.123,246.3,246.2,1.6487]
[1737622285520,4.123,246.3,246.19,18.9977066]
[1737622285747,4.123,246.3,246.17,18.9977066]
[1737622286041,4.123,246.3,246.15,18.9977066]
[1737622286935,14.2732,246.3,246.15,18.9977066]
[1737622287328,6.3096,246.26,246.15,18.9977066]
[1737622287515,6.3096,246.26,246.14,1.6487]
[1737622287940,6.3096,246.26,246.13,19.0277066]
[1737622288125,4.0609,246.25,246.13,19.0277066]
[1737622288330,20.0,246.23,246.13,19.0277066]
[1737622288542,6.3096,246.26,246.15,18.9977066]
[1737622288922,6.3096,246.26,246.17,18.9977066]
[1737622289541,10.3704,246.26,246.13,19.0277066]
[1737622289836,6.3096,246.26,246.17,18.9977066]
[1737622290342,6.3096,246.26,246.18,4.062]
[1737622291018,0.063,246.3,246.21,18.9977066]
[1737622291343,0.063,246.3,246.25,18.9977066]
[1737622291716,4.02,246.29,246.25,18.9977066]
[1737622291914,4.02,246.29,246.26,4.0607]
[1737622292426,4.02,246.29,246.25,18.9977066]
[1737622292628,4.02,246.29,246.23,18.9977066]
[1737622292829,4.02,246.29,246.23,23.0588066]
[1737622293930,28.0803,246.29,246.14,4.0627]
[1737622294228,28.0803,246.29,246.16,18.9977066]
[1737622294425,28.0803,246.29,246.18,0.03]
[1737622294636,20.0,246.25,246.18,0.03]
[1737622294946,20.0,246.26,246.18,0.03]
[1737622296350,4.0609,246.25,246.18,0.03]
[1737622298332,20.0,246.23,246.18,0.03]
[1737622299343,4.0614,246.22,246.18,0.03]
[1737622300780,20.0,246.19,246.18,0.03]
[1737622302351,24.0619,246.19,246.18,0.03]
[1737622303562,24.0619,246.19,246.13,0.03]
[1737622303563,20.0,246.18,246.13,0.03]
[1737622305556,24.0622,246.18,246.13,0.03]
[1737622305853,4.0618,246.2,246.13,0.03]
[1737622306155,4.0612,246.24,246.18,0.03]
[1737622306458,4.0,246.23,246.18,0.03]
[1737622307640,8.0613,246.23,246.18,0.03]
[1737622307839,20.0,246.2,246.18,0.03]
[1737622309467,18.2144,246.23,246.13,0.03]
[1737622309468,34.2166,246.19,246.13,0.03]
[1737622312659,20.0,246.15,246.13,0.03]
[1737622314747,4.0627,246.14,246.13,0.03]
[1737622320258,43.776884,246.11,246.1,0.03]
[1737622320958,20.0,246.04,245.98,0.03]
[1737622321146,3.96,246.03,245.98,0.03]
[1737622322862,3.96,246.03,246.0,11.9067026]
[1737622323148,6.2435,246.14,245.98,0.03]
[1737622323149,43.88,246.15,246.02,11.9067026]
[1737622323347,3.96,246.14,246.02,11.9067026]
[1737622323768,3.96,246.14,246.03,19.02922344]
[1737622323964,43.88,246.15,246.04,4.0643]
[1737622324148,3.96,246.14,246.05,19.02922344]
[1737622324349,3.98,246.14,246.09,19.02922344]
[1737622324748,3.98,246.14,246.06,19.02922344]
[1737622324953,3.98,246.14,246.02,4.0646]
[1737622325246,3.98,246.14,246.02,33.25552344]
[1737622325446,3.98,246.14,246.02,4.0646]
[1737622326173,3.98,246.14,246.02,23.09382344]
[1737622326654,3.48,246.14,246.02,23.09382344]
[1737622327946,3.48,246.14,246.02,33.25552344]
[1737622328152,20.0,246.1,245.98,0.03]
[1737622329049,20.0,246.09,245.98,0.03]
[1737622329971,4.0637,246.08,245.98,0.03]
[1737622330348,4.063,246.12,245.98,0.03]
[1737622330679,4.2,246.11,245.99,19.02922344]
[1737622331179,20.0,246.1,245.99,19.02922344]
[1737622332054,20.0,246.1,246.0,4.065]
[1737622333480,0.063,246.11,246.05,19.02922344]
[1737622333857,0.063,246.11,246.09,19.02922344]
[1737622334278,0.063,246.11,246.1,23.776884]
[1737622334780,0.0001,246.11,246.1,24.776884]
[1737622334964,0.063,246.18,246.1,43.80610744]
[1737622335163,0.063,246.18,246.17,19.02922344]
[1737622335889,0.063,246.18,246.17,23.09142344]
[1737622336077,0.0001,246.18,246.17,46.86830744]
[1737622337468,0.0001,246.18,246.16,6.6321]
[1737622337774,0.0001,246.18,246.14,4.0626]
[1737622337976,0.0001,246.18,246.15,19.02922344]
[1737622338770,0.0001,246.18,246.13,19.02922344]
[1737622339283,0.0001,246.18,246.16,19.02922344]
[1737622339784,0.0001,246.18,246.17,23.776884]
[1737622340154,0.0001,246.18,246.16,19.02922344]
[1737622340655,0.0001,246.18,246.14,42.80610744]
[1737622340863,0.0001,246.18,246.1,19.02922344]
[1737622341075,0.0001,246.18,246.08,19.02922344]
[1737622341763,0.0001,246.18,246.06,19.02922344]
[1737622342088,0.0001,246.18,246.05,1.5094]
[1737622342267,0.0001,246.18,246.04,19.02922344]
[1737622342870,0.0001,246.18,246.02,23.09382344]
[1737622348880,0.0001,246.18,246.04,19.02922344]
[1737622349980,0.0001,246.18,246.05,4.0642]
[1737622351986,6.0715,246.17,246.04,19.02922344]
[1737622352183,6.0715,246.17,246.0,19.02922344]
[1737622352184,14.2182,246.16,246.0,19.02922344]
[1737622352497,14.2182,246.16,245.98,23.12452344]
[1737622353065,20.0,246.13,245.98,23.12452344]
[1737622353263,4.16,246.12,245.98,23.12452344]
[1737622353465,4.0632,246.11,245.98,23.12452344]
[1737622356272,20.0,246.08,245.98,0.03]
[1737622356494,20.0,246.04,245.98,0.03]
[1737622357974,1.0,246.04,245.98,0.0001]
[1737622358177,15.2287,245.98,245.88,0.03]
[1737622358381,20.0,245.95,245.88,0.03]
[1737622358694,44.776884,245.94,245.88,0.03]
[1737622358865,20.0,245.94,245.88,0.03]
[1737622359062,4.18,245.93,245.88,0.03]
[1737622359293,6.2731,245.92,245.88,0.03]
[1737622359873,20.0,245.89,245.88,0.03]
[1737622360176,4.0665,245.91,245.88,0.03]
[1737622360382,20.0,245.89,245.88,0.03]
[1737622362282,47.843684,245.89,245.77,0.03]
[1737622362487,24.0668,245.89,245.77,0.03]
[1737622363991,20.0,245.89,245.77,0.03]
[1737622364196,6.2731,245.92,245.78,4.0686]
[1737622364572,6.2731,245.92,245.79,23.776884]
[1737622365578,6.2731,245.92,245.79,42.80610744]
[1737622365772,6.9778,245.99,245.83,19.02922344]
[1737622365971,4.22,245.97,245.85,19.02922344]
[1737622366178,8.2856,245.97,245.83,19.02922344]
[1737622366875,4.22,245.97,245.85,19.02922344]
[1737622367502,43.9,245.98,245.87,19.02922344]
[1737622367804,4.22,245.96,245.87,19.02922344]
[1737622368172,48.1,245.98,245.9,23.776884]
[1737622369392,48.1,245.98,245.91,4.0665]
[1737622369801,43.9,245.98,245.93,19.02922344]
[1737622370013,43.9,245.98,245.95,19.02922344]
[1737622370681,4.2,246.06,245.97,19.02922344]
[1737622370880,4.2,246.06,245.99,19.02922344]
[1737622371279,8.2641,246.06,245.93,19.02922344]
[1737622372491,8.2641,246.06,245.87,11.76134056]
[1737622372492,8.2641,246.06,245.91,19.02922344]
[1737622373982,8.2641,246.06,245.92,4.0663]
[1737622375410,4.0647,246.02,245.92,4.0663]
[1737622376319,4.0635,246.09,245.95,19.02922344]
[1737622376613,4.18,246.08,246.01,19.02922344]
[1737622376911,4.18,246.07,246.03,19.02922344]
[1737622377410,6.2731,246.17,246.03,19.02922344]
[1737622377707,4.18,246.16,246.04,4.0643]
[1737622378601,6.2731,246.17,246.06,19.02922344]
[1737622378784,10.4531,246.17,246.1,19.02922344]
[1737622378987,14.5153,246.17,246.04,23.09352344]
[1737622379892,10.4531,246.17,246.06,19.02922344]
[1737622380297,10.4531,246.17,246.08,19.02922344]
[1737622380988,4.18,246.16,246.1,19.02922344]
[1737622381188,4.18,246.16,246.04,14.83459527]
[1737622381189,4.18,246.16,246.13,19.02922344]
[1737622381389,4.18,246.16,246.11,19.02922344]
[1737622381589,4.18,246.16,246.09,19.02922344]
[1737622381789,4.0625,246.15,246.09,19.02922344]
[1737622382307,4.0625,246.15,246.07,19.02922344]
[1737622382510,4.0625,246.15,245.99,19.02922344]
[1737622382815,14.2189,246.15,246.01,45.10922344]
[1737622382995,14.2189,246.15,246.01,19.02922344]
[1737622383196,14.2189,246.15,245.99,23.776884]
[1737622383197,4.0625,246.15,246.03,19.02922344]
[1737622384223,4.0625,246.15,246.01,19.02922344]
[1737622384512,20.0,246.11,245.99,19.02922344]
[1737622384717,20.0,246.11,245.97,24.70872344]
[1737622385717,4.0633,246.1,245.97,24.70872344]
[1737622385915,4.0633,246.1,245.95,4.0657]
[1737622386213,4.0633,246.1,245.94,19.02922344]
[1737622387024,20.0,246.07,245.91,4.0663]
[1737622387600,20.0,246.03,245.88,19.02922344]
[1737622388342,20.0,246.03,245.87,4.067]
[1737622388799,4.0647,246.02,245.87,4.067]
[1737622389000,8.1784,246.01,245.85,1.67659539]
[1737622389318,4.2,246.0,245.85,0.03]
[1737622390112,20.0,245.98,245.85,4.0974]
[1737622390310,4.0655,245.97,245.85,0.03]
[1737622390519,24.0655,245.97,245.85,0.03]
[1737622390817,4.0652,245.99,245.86,19.02922344]
[1737622391022,20.0,245.98,245.85,0.03]
[1737622392221,4.0055,245.97,245.87,0.03]
[1737622393012,14.1693,245.97,245.87,0.03]
[1737622393201,23.776884,245.96,245.87,0.03]
[1737622393400,20.0,245.93,245.87,0.03]
[1737622393908,14.1693,245.97,245.87,0.03]
[1737622394129,10.1638,245.97,245.87,0.03]
[1737622394623,14.2316,245.97,245.87,0.03]
[1737622395425,18.2971,245.97,245.87,0.03]
[1737622398230,8.1784,246.01,245.87,0.03]
[1737622398426,4.065,246.0,245.87,0.03]
[1737622398728,20.0,245.98,245.87,0.03]
[1737622399409,24.0655,245.97,245.87,0.03]
[1737622400548,4.0655,245.97,245.87,0.03]
[1737622400752,4.0655,245.97,245.87,19.05922344]
[1737622401029,4.0653,245.99,245.87,19.05922344]
[1737622401332,8.1784,246.01,245.87,19.05922344]
[1737622401523,12.2434,246.01,245.87,19.05922344]
[1737622402116,8.1784,246.01,245.89,19.02922344]
[1737622402428,1.6285,246.07,245.93,19.02922344]
[1737622402645,6.153,246.07,245.99,19.02922344]
[1737622402929,6.153,246.07,245.9,14.2332]
[1737622402930,20.0,246.04,245.91,19.02922344]
[1737622404204,4.0645,246.03,245.92,4.0663]
[1737622406224,4.0645,246.03,245.91,19.02922344]
[1737622406430,4.0645,246.03,245.85,12.4377599]
[1737622406431,4.0645,246.03,245.89,19.02922344]
[1737622407309,0.063,246.04,245.96,19.02922344]
[1737622407524,0.063,246.04,246.0,19.02922344]
[1737622408420,0.063,246.04,246.01,4.0648]
[1737622409437,0.063,246.04,246.02,19.02922344]
[1737622409816,0.063,246.04,246.0,19.02922344]
[1737622410011,0.063,246.04,246.0,23.09412344]
[1737622410219,0.063,246.04,246.0,19.02922344]
[1737622410543,4.1273,246.04,245.96,19.02922344]
[1737622410872,4.1273,246.04,245.94,19.02922344]
[1737622411041,4.1273,246.04,245.92,19.02922344]
[1737622411544,6.153,246.03,245.92,19.02922344]
[1737622412421,6.153,246.03,245.92,10.69602344]
[1737622412740,6.153,246.03,245.9,4.0666]
[1737622412741,6.153,245.88,245.71,3.92950334]
[1737622413041,20.0,245.85,245.68,19.02922344]
[1737622413244,0.61834015,245.84,245.7,19.02922344]
[1737622413432,0.61834015,245.84,245.77,312.03]
[1737622413614,20.61834015,245.85,245.77,0.03]
[1737622414733,24.0676,245.84,245.77,0.03]
[1737622415158,24.0676,245.84,245.7,19.02922344]
[1737622415446,25.08493961,245.84,245.7,19.02922344]
[1737622415850,1.01733961,245.84,245.74,19.02922344]
[1737622416724,1.01733961,245.84,245.79,312.0]
[1737622417144,1.01733961,245.84,245.78,19.02922344]
[1737622417744,1.01733961,245.84,245.8,19.02922344]
[1737622418120,1.01733961,245.84,245.82,19.02922344]
[1737622418445,1.01733961,245.84,245.8,19.02922344]
[1737622418632,1.01733961,245.9,245.8,19.02922344]
[1737622419342,1.01733961,245.9,245.82,19.02922344]
[1737622419933,1.01733961,245.92,245.82,19.02922344]
[1737622420135,1.01733961,245.92,245.88,312.0]
[1737622420647,1.01733961,245.92,245.88,19.02922344]
[1737622421151,1.01733961,245.92,245.84,19.02922344]
[1737622421329,1.01733961,245.92,245.83,4.0678]
[1737622421650,4.066,245.95,245.83,4.0678]
[1737622422452,4.68434015,245.95,245.8,19.02922344]
[1737622422652,4.68434015,245.95,245.79,4.0684]
[1737622422831,1.01733961,245.94,245.81,20.0]
[1737622423038,20.0,245.92,245.8,19.02922344]
[1737622423233,20.0,245.9,245.78,20.65062344]
[1737622423435,6.15204487,245.93,245.8,19.02922344]
[1737622423721,6.15204487,245.93,245.84,312.0]
[1737622424243,1.01733961,245.92,245.82,19.02922344]
[1737622425055,1.01733961,245.92,245.84,19.02922344]
[1737622425629,1.01733961,245.93,245.87,23.776884]
[1737622425945,1.01733961,245.93,245.92,0.80533]
[1737622427132,1.01733961,245.93,245.92,312.80533]
[1737622427454,1.01733961,245.95,245.92,0.80533]
[1737622428849,1.01733961,245.96,245.92,0.80533]
[1737622429753,5.08313961,245.96,245.92,0.80533]